bitfinex/quotes_BTCUSD_20250920
["timestamp","ask_amount","ask_price","bid_price","bid_amount"]
[1758382407240,1.72610689,116300.0,116290.0,1.81216055]
[1758382407489,1.72610689,116300.0,116290.0,1.80918055]
[1758382409404,2.18546361,116300.0,116290.0,1.80710055]
[1758382409629,2.21127712,116300.0,116290.0,1.80710055]
[1758382409865,2.26127712,116300.0,116290.0,1.80710055]
[1758382410100,2.26127712,116300.0,116290.0,1.80438884]
[1758382411405,2.25927347,116300.0,116290.0,1.80438884]
[1758382411812,2.25727347,116300.0,116290.0,1.80438884]
[1758382412024,1.98743347,116300.0,116290.0,1.80438884]
[1758382412236,2.26891347,116300.0,116290.0,1.80538884]
[1758382412844,2.26591347,116300.0,116290.0,1.80438884]
[1758382413246,2.26995347,116300.0,116290.0,1.80538884]
[1758382413476,2.00043347,116300.0,116290.0,1.80538884]
[1758382413713,2.26991347,116300.0,116290.0,1.80538884]
[1758382413933,2.00043347,116300.0,116290.0,1.80538884]
[1758382414361,2.26995347,116300.0,116290.0,1.80538884]
[1758382417924,2.26995347,116300.0,116290.0,0.99693046]
[1758382418143,2.26995347,116300.0,116290.0,0.94828736]
[1758382418368,2.26995347,116300.0,116290.0,0.66531333]
[1758382418607,2.26995347,116300.0,116290.0,0.53667454]
[1758382418790,2.31995347,116300.0,116290.0,0.26804081]
[1758382419290,0.81201341,116270.0,116260.0,0.02563]
[1758382419533,1.55427123,116270.0,116260.0,0.02264682]
[1758382419735,1.55427123,116270.0,116260.0,0.02469682]
[1758382419947,1.55423123,116270.0,116260.0,0.02469682]
[1758382420211,1.31896835,116270.0,116260.0,0.02772682]
[1758382420414,1.6136847,116270.0,116260.0,0.02772682]
[1758382420858,0.97185765,116270.0,116260.0,0.02972682]
[1758382421095,1.3450847,116270.0,116260.0,0.02972682]
[1758382421323,1.6148447,116270.0,116260.0,0.02972682]
[1758382421583,1.6648447,116270.0,116260.0,0.02972682]
[1758382421998,1.76831175,116270.0,116260.0,0.02972682]
[1758382422219,1.6668447,116270.0,116260.0,0.04272682]
[1758382422682,1.6648447,116270.0,116260.0,0.02972682]
[1758382423126,1.6638447,116270.0,116260.0,0.02772682]
[1758382423381,1.6648447,116270.0,116260.0,0.03672682]
[1758382423812,1.6648447,116270.0,116260.0,0.30582682]
[1758382424048,1.75011437,116270.0,116260.0,0.30582682]
[1758382424485,1.77431437,116270.0,116260.0,0.30582682]
[1758382424714,1.6890447,116270.0,116260.0,0.30582682]
[1758382425445,1.6890447,116270.0,116260.0,0.30002755]
[1758382425668,1.6911747,116270.0,116260.0,0.30207755]
[1758382426351,1.69115978,116270.0,116260.0,0.30207755]
[1758382427095,1.69111978,116270.0,116260.0,0.30207755]
[1758382427308,1.66691978,116270.0,116260.0,0.30207755]
[1758382428998,1.39719978,116270.0,116260.0,0.30207755]
[1758382429223,1.77634945,116270.0,116260.0,0.30207755]
[1758382429634,1.77634945,116270.0,116260.0,0.03397755]
[1758382429849,1.69107978,116270.0,116260.0,0.03397755]
[1758382430065,1.69408978,116270.0,116260.0,0.03397755]
[1758382433181,1.69408978,116270.0,116260.0,0.03192755]
[1758382433407,1.69408978,116270.0,116260.0,0.01]
[1758382434547,2.06731683,116270.0,116260.0,0.01]
[1758382435725,2.12084868,116270.0,116260.0,0.01]
[1758382437437,2.12080868,116270.0,116260.0,0.01]
[1758382437857,1.85120868,116270.0,116260.0,0.01]
[1758382438067,2.12080868,116270.0,116260.0,0.01]
[1758382438728,1.10475458,116270.0,116260.0,0.01]
[1758382438938,1.85121498,116270.0,116260.0,0.01]
[1758382439153,2.12077498,116270.0,116260.0,0.01]
[1758382439592,1.85121498,116270.0,116260.0,0.01]
[1758382439819,2.12081498,116270.0,116260.0,0.01]
[1758382440224,1.85121498,116270.0,116260.0,0.01]
[1758382440476,2.0833934,116270.0,116260.0,0.01]
[1758382440919,1.8137934,116270.0,116260.0,0.01]
[1758382441141,2.0833534,116270.0,116260.0,0.01]
[1758382441816,1.3096493,116270.0,116260.0,0.01203]
[1758382442043,1.68287635,116270.0,116260.0,0.03535]
[1758382442309,1.70665635,116270.0,116260.0,0.03535]
[1758382442515,1.70973635,116270.0,116260.0,0.03535]
[1758382442945,1.79500602,116270.0,116260.0,0.03535]
[1758382444007,1.70973635,116270.0,116260.0,0.03535]
[1758382444681,1.68599635,116270.0,116260.0,0.01203]
[1758382444909,1.68291635,116270.0,116260.0,0.03635]
[1758382445131,1.3096893,116270.0,116260.0,0.03635]
[1758382445351,1.68291635,116270.0,116260.0,0.03635]
[1758382446438,1.71599121,116270.0,116260.0,0.03635]
[1758382446654,1.70665635,116270.0,116260.0,0.03635]
[1758382447329,1.70973635,116270.0,116260.0,0.03635]
[1758382448823,1.44013635,116270.0,116260.0,0.03635]
[1758382448998,1.68287635,116270.0,116260.0,0.03635]
[1758382449474,1.70661635,116270.0,116260.0,0.03635]
[1758382449682,1.70969635,116270.0,116260.0,0.03635]
[1758382449919,1.79496602,116270.0,116260.0,0.01203]
[1758382450174,1.79496602,116270.0,116260.0,0.01]
[1758382450631,1.70969635,116270.0,116260.0,0.01]
[1758382452186,2.0829234,116270.0,116260.0,0.01]
[1758382460878,2.1759234,116270.0,116260.0,0.01]
[1758382462803,2.1491034,116270.0,116260.0,0.01207]
[1758382463029,2.1491034,116270.0,116260.0,0.03639]
[1758382463262,2.1759234,116270.0,116260.0,0.03639]
[1758382463522,2.1759234,116270.0,116260.0,0.01]
[1758382464643,2.26119307,116270.0,116260.0,0.01]
[1758382465700,2.1759234,116270.0,116260.0,0.01]
[1758382465899,1.80289422,116270.0,116260.0,0.01]
[1758382468484,1.4294693,116270.0,116260.0,0.01]
[1758382468694,1.53333422,116270.0,116260.0,0.01]
[1758382468909,1.80289422,116270.0,116260.0,0.01]
[1758382469119,1.80292296,116270.0,116260.0,0.01046597]
[1758382469534,1.42949804,116270.0,116260.0,0.01046597]
[1758382469741,1.80292296,116270.0,116260.0,0.01046597]
[1758382469982,1.80292334,116270.0,116260.0,0.01046597]
[1758382471983,1.42949842,116270.0,116260.0,0.01046597]
[1758382472190,1.80292334,116270.0,116260.0,0.01046597]
[1758382473382,1.42949842,116270.0,116260.0,0.01046597]
[1758382473588,1.80292334,116270.0,116260.0,0.01046597]
[1758382477163,1.80295148,116270.0,116260.0,0.01046597]
[1758382478865,1.42952656,116270.0,116260.0,0.01046597]
[1758382479088,1.80295148,116270.0,116260.0,0.01046597]
[1758382479525,1.42952656,116270.0,116260.0,0.01046597]
[1758382479745,1.80295148,116270.0,116260.0,0.01046597]
[1758382480409,1.42952656,116270.0,116260.0,0.01046597]
[1758382480659,1.80295148,116270.0,116260.0,0.01046597]
[1758382481768,1.82571479,116270.0,116260.0,0.01046597]
[1758382481983,1.45228987,116270.0,116260.0,0.01046597]
[1758382482429,1.55615479,116270.0,116260.0,0.01046597]
[1758382482673,1.65588513,116270.0,116260.0,0.03510597]
[1758382483327,1.65787513,116270.0,116260.0,0.03510597]
[1758382485636,1.68226513,116270.0,116260.0,0.03510597]
[1758382486457,1.70802772,116270.0,116260.0,0.03510597]
[1758382487066,1.71106772,116270.0,116260.0,0.03510597]
[1758382489882,1.71106772,116270.0,116260.0,0.01255597]
[1758382490105,1.3376428,116270.0,116260.0,0.01046597]
[1758382490305,1.71106772,116270.0,116260.0,0.01046597]
[1758382496683,1.44150772,116270.0,116260.0,0.01046597]
[1758382496895,1.71105361,116270.0,116260.0,0.01046597]
[1758382497095,1.33762869,116270.0,116260.0,0.01046597]
[1758382497310,1.71105361,116270.0,116260.0,0.01046597]
[1758382497958,1.69491838,116270.0,116260.0,0.01046597]
[1758382499033,1.42535838,116270.0,116260.0,0.01046597]
[1758382499260,1.69495838,116270.0,116260.0,0.01046597]
[1758382499942,1.42535838,116270.0,116260.0,0.01046597]
[1758382500161,1.69499838,116270.0,116260.0,0.01046597]
[1758382500617,1.32157346,116270.0,116260.0,0.01046597]
[1758382500855,1.69499838,116270.0,116260.0,0.01046597]
[1758382501067,1.42535838,116270.0,116260.0,0.01046597]
[1758382501308,1.69503838,116270.0,116260.0,0.01046597]
[1758382501527,1.32161346,116270.0,116260.0,0.01046597]
[1758382501752,1.69503838,116270.0,116260.0,0.01046597]
[1758382502828,1.32161346,116270.0,116260.0,0.01046597]
[1758382503052,1.69503838,116270.0,116260.0,0.01046597]
[1758382503258,1.69503177,116270.0,116260.0,0.01046597]
[1758382504866,1.69495177,116270.0,116260.0,0.01046597]
[1758382505280,1.71108878,116270.0,116260.0,0.01046597]
[1758382505481,1.69495177,116270.0,116260.0,0.01046597]
[1758382510538,1.69487177,116270.0,116260.0,0.01046597]
[1758382510727,1.42535177,116270.0,116260.0,0.01046597]
[1758382510964,1.71109357,116270.0,116260.0,0.01046597]
[1758382512149,1.06806865,116270.0,116260.0,0.01046597]
[1758382512376,1.71109357,116270.0,116260.0,0.01046597]
[1758382515301,1.71109323,116270.0,116260.0,0.01046597]
[1758382518352,1.33766831,116270.0,116260.0,0.01046597]
[1758382518587,1.71109323,116270.0,116260.0,0.01046597]
[1758382524962,1.04063831,116270.0,116260.0,0.01259597]
[1758382525165,1.68167323,116270.0,116260.0,0.03759597]
[1758382525538,1.69063143,116270.0,116260.0,0.03759597]
[1758382525746,1.69366057,116270.0,116260.0,0.03759597]
[1758382525953,1.69366057,116270.0,116260.0,0.01046597]
[1758382527753,1.69360817,116270.0,116260.0,0.01046597]
[1758382531387,1.69356817,116270.0,116260.0,0.01046597]
[1758382533108,2.06694069,116270.0,116260.0,0.01046598]
[1758382533901,1.69356817,116270.0,116260.0,0.01046598]
[1758382536275,2.06694069,116270.0,116260.0,0.01046598]
[1758382536963,1.32019565,116270.0,116260.0,0.01046598]
[1758382537179,2.06694069,116270.0,116260.0,0.01046598]
[1758382538841,2.06693977,116270.0,116260.0,0.01046598]
[1758382540140,2.1058466,116270.0,116260.0,0.01046598]
[1758382541215,2.55010919,116270.0,116260.0,0.01046598]
[1758382542187,2.17573667,116270.0,116260.0,0.00046598]
[1758382542622,2.17573667,116270.0,116260.0,0.00146598]
[1758382543857,2.17569667,116270.0,116260.0,0.00146598]
[1758382544256,2.17769667,116270.0,116260.0,0.00246598]
[1758382546701,2.15348509,116270.0,116260.0,0.00246598]
[1758382546926,2.17767412,116270.0,116260.0,0.00246598]
[1758382548423,1.90815412,116270.0,116260.0,0.00246598]
[1758382549160,2.17771412,116270.0,116260.0,0.00246598]
[1758382557121,1.90815412,116270.0,116260.0,0.00246598]
[1758382557559,2.17771412,116270.0,116260.0,0.00246598]
[1758382560895,1.90815412,116270.0,116260.0,0.00246598]
[1758382561328,2.17771412,116270.0,116260.0,0.00246598]
[1758382561757,1.90815412,116270.0,116260.0,0.00246598]
[1758382561987,2.17771412,116270.0,116260.0,0.00246598]
[1758382562192,1.90815412,116270.0,116260.0,0.00246598]
[1758382563193,2.17771412,116270.0,116260.0,0.00246598]
[1758382563410,1.90815412,116270.0,116260.0,0.00246598]
[1758382563849,2.17771412,116270.0,116260.0,0.00246598]
[1758382569403,2.19120058,116270.0,116260.0,0.00246598]
[1758382574944,2.17771412,116270.0,116260.0,0.00246598]
[1758382579621,2.19120068,116270.0,116260.0,0.00246598]
[1758382584817,2.17771412,116270.0,116260.0,0.00246598]
[1758382585018,2.27071412,116270.0,116260.0,0.00246598]
[1758382588065,2.27067412,116270.0,116260.0,0.00246598]
[1758382589535,2.28416047,116270.0,116260.0,0.00246598]
[1758382589776,1.91094213,116270.0,116260.0,0.00246598]
[1758382592929,0.47205781,116240.0,116230.0,0.02724]
[1758382593154,1.2414765,116240.0,116230.0,0.02728682]
[1758382593372,1.2414765,116240.0,116230.0,0.02925682]
[1758382593568,1.26734889,116240.0,116230.0,0.02925682]
[1758382594649,1.26834889,116240.0,116230.0,0.03425682]
[1758382595283,1.31834889,116240.0,116230.0,0.03425682]
[1758382595703,1.31934889,116240.0,116230.0,0.03725682]
[1758382596197,1.31834889,116240.0,116230.0,0.03425682]
[1758382596617,1.31834889,116240.0,116230.0,0.03515682]
[1758382596830,1.31934889,116240.0,116230.0,0.03515682]
[1758382599667,1.31930889,116240.0,116230.0,0.03515682]
[1758382603099,1.31930889,116240.0,116230.0,0.03221682]
[1758382604700,1.31931091,116240.0,116230.0,0.03221682]
[1758382605837,1.32133091,116240.0,116230.0,0.03221682]
[1758382606527,1.32133091,116240.0,116230.0,0.00604682]
[1758382606764,1.68913091,116240.0,116230.0,0.00604682]
[1758382613096,1.04612421,116240.0,116230.0,0.00604682]
[1758382613315,1.31560421,116240.0,116230.0,0.00604682]
[1758382613536,1.68913091,116240.0,116230.0,0.00604682]
[1758382615313,1.68912307,116240.0,116230.0,0.00604682]
[1758382616566,1.68912267,116240.0,116230.0,0.00604682]
[1758382617200,1.70525283,116240.0,116230.0,0.00604682]
[1758382618062,1.33172613,116240.0,116230.0,0.00604682]
[1758382618268,1.70525283,116240.0,116230.0,0.00604682]
[1758382622337,1.70349283,116240.0,116230.0,0.00604682]
[1758382622520,1.43401283,116240.0,116230.0,0.00604682]
[1758382622727,1.41109283,116240.0,116230.0,0.00604682]
[1758382622932,1.67745862,116240.0,116230.0,0.03226682]
[1758382623156,1.40797862,116240.0,116230.0,0.03226682]
[1758382623391,1.40595862,116240.0,116230.0,0.03521682]
[1758382623605,1.25879853,116240.0,116230.0,0.03521682]
[1758382623825,1.25879853,116240.0,116230.0,0.05242408]
[1758382624034,0.98931853,116240.0,116230.0,0.05242408]
[1758382624247,1.25879853,116240.0,116230.0,0.05242408]
[1758382625289,1.25879853,116240.0,116230.0,0.32052408]
[1758382625501,1.25879853,116240.0,116230.0,0.30331682]
[1758382626147,1.28578176,116240.0,116230.0,0.30331682]
[1758382627167,1.28578052,116240.0,116230.0,0.30331682]
[1758382627382,1.28578416,116240.0,116230.0,0.30331682]
[1758382629664,1.65931086,116240.0,116230.0,0.30331682]
[1758382630866,1.28578416,116240.0,116230.0,0.30331682]
[1758382631316,1.65931001,116240.0,116230.0,0.30331682]
[1758382631796,1.65931001,116240.0,116230.0,0.30036682]
[1758382636569,1.28578331,116240.0,116230.0,0.30036682]
[1758382636794,1.65931001,116240.0,116230.0,0.30036682]
[1758382637268,1.28787331,116240.0,116230.0,0.30036682]
[1758382637450,1.66140001,116240.0,116230.0,0.30036682]
[1758382637894,1.28787331,116240.0,116230.0,0.30036682]
[1758382638101,1.66140001,116240.0,116230.0,0.30036682]
[1758382638313,1.28787331,116240.0,116230.0,0.30036682]
[1758382638702,1.66140001,116240.0,116230.0,0.30036682]
[1758382639162,1.28787331,116240.0,116230.0,0.30036682]
[1758382640345,1.31456331,116240.0,116230.0,0.25036682]
[1758382642253,1.68809001,116240.0,116230.0,0.25036682]
[1758382642862,1.31456331,116240.0,116230.0,0.25036682]
[1758382643062,1.68809001,116240.0,116230.0,0.25036682]
[1758382643274,1.68809001,116240.0,116230.0,0.25067761]
[1758382643480,1.31456331,116240.0,116230.0,0.25067761]
[1758382643702,1.68809001,116240.0,116230.0,0.25067761]
[1758382645520,1.31456331,116240.0,116230.0,0.25067761]
[1758382645766,1.68809001,116240.0,116230.0,0.25067761]
[1758382649765,1.41860333,116240.0,116230.0,0.25067761]
[1758382650156,1.68804333,116240.0,116230.0,0.25067761]
[1758382651189,1.31452331,116240.0,116230.0,0.25067761]
[1758382651399,1.68804333,116240.0,116230.0,0.25067761]
[1758382652726,1.04508331,116240.0,116230.0,0.25067761]
[1758382652932,1.68804333,116240.0,116230.0,0.25067761]
[1758382658362,1.68804333,116240.0,116230.0,0.25067762]
[1758382662797,1.31452331,116240.0,116230.0,0.25067762]
[1758382663012,1.68804333,116240.0,116230.0,0.25067762]
[1758382668153,1.31452331,116240.0,116230.0,0.42275023]
[1758382668404,1.68804333,116240.0,116230.0,0.42275023]
[1758382674937,1.68804951,116240.0,116230.0,0.42275023]
[1758382677946,1.68804951,116240.0,116230.0,0.42275024]
[1758382678190,1.68804951,116240.0,116230.0,0.25067763]
[1758382678434,2.06156953,116240.0,116230.0,0.25067763]
[1758382682115,1.31453499,116240.0,116230.0,0.25067763]
[1758382682314,2.06157503,116240.0,116230.0,0.25067763]
[1758382682528,1.31453499,116240.0,116230.0,0.25067763]
[1758382682955,2.07772668,116240.0,116230.0,0.25067763]
[1758382684826,2.07772668,116240.0,116230.0,0.00031081]
[1758382686238,2.06157503,116240.0,116230.0,0.00031081]
[1758382694950,2.05349967,116240.0,116230.0,0.00031081]
[1758382695963,2.14653967,116240.0,116230.0,0.00031081]
[1758382699355,2.15460937,116240.0,116230.0,0.00031081]
[1758382700035,1.99320235,116240.0,116230.0,0.00031081]
[1758382700478,2.26328235,116240.0,116230.0,0.00031081]
[1758382701166,0.54559263,116230.0,116220.0,1.19532463]
[1758382701392,0.95494553,116230.0,116220.0,1.19537144]
[1758382701636,0.96292206,116230.0,116220.0,1.19537144]
[1758382702079,0.98879515,116230.0,116220.0,1.19537144]
[1758382702636,0.98879515,116230.0,116220.0,0.94500462]
[1758382703759,0.98979515,116230.0,116220.0,0.94600462]
[1758382704231,0.61627513,116230.0,116220.0,0.94600462]
[1758382704462,0.98979515,116230.0,116220.0,0.94600462]
[1758382704670,0.99079515,116230.0,116220.0,0.95200462]
[1758382705811,0.98979515,116230.0,116220.0,0.95100462]
[1758382706036,0.98979515,116230.0,116220.0,0.94500462]
[1758382706037,0.98879515,116230.0,116220.0,0.94500462]
[1758382706487,0.98979515,116230.0,116220.0,0.94600462]
[1758382706729,0.71971515,116230.0,116220.0,0.94600462]
[1758382706973,0.98963515,116230.0,116220.0,0.94600462]
[1758382708167,0.99063515,116230.0,116220.0,0.94900462]
[1758382709869,0.99075467,116230.0,116220.0,0.94900462]
[1758382710272,0.61711513,116230.0,116220.0,0.94900462]
[1758382710479,0.99075467,116230.0,116220.0,0.94900462]
[1758382716410,0.72083467,116230.0,116220.0,0.94900462]
[1758382716631,0.99063467,116230.0,116220.0,0.94900462]
[1758382716945,0.99059467,116230.0,116220.0,0.94900462]
[1758382720852,0.34719513,116230.0,116220.0,0.94900462]
[1758382721048,0.99063467,116230.0,116220.0,0.94900462]
[1758382723290,0.99871053,116230.0,116220.0,0.94900462]
[1758382725172,0.99871058,116230.0,116220.0,0.94900462]
[1758382726588,0.62495104,116230.0,116220.0,0.94900462]
[1758382726832,0.99859058,116230.0,116220.0,0.95085462]
[1758382727791,0.96973058,116230.0,116220.0,0.97005462]
[1758382728258,0.59609104,116230.0,116220.0,0.97005462]
[1758382730051,0.96973058,116230.0,116220.0,0.97005462]
[1758382730260,0.97175058,116230.0,116220.0,0.95085462]
[1758382731516,0.99477058,116230.0,116220.0,0.95085462]
[1758382731726,0.99794058,116230.0,116220.0,0.95085462]
[1758382735067,0.99794058,116230.0,116220.0,0.94900462]
[1758382737954,0.62430104,116230.0,116220.0,0.94900462]
[1758382738147,0.99794058,116230.0,116220.0,0.94900462]
[1758382738642,0.99782058,116230.0,116220.0,0.94900462]
[1758382738866,0.99778058,116230.0,116220.0,0.95085462]
[1758382739702,0.59593104,116230.0,116220.0,0.97005462]
[1758382739901,0.32633104,116230.0,116220.0,0.97005462]
[1758382740142,0.56087195,116230.0,116220.0,1.14329204]
[1758382741415,0.56087195,116230.0,116220.0,0.97120462]
[1758382741712,0.56087116,116230.0,116220.0,0.97120462]
[1758382742296,0.56087116,116230.0,116220.0,0.97005462]
[1758382743967,0.56087116,116230.0,116220.0,1.22042144]
[1758382751659,0.56087116,116230.0,116220.0,1.22062871]
[1758382752355,0.56087116,116230.0,116220.0,1.20142871]
[1758382754359,0.56304116,116230.0,116220.0,1.20142871]
[1758382755220,0.56304116,116230.0,116220.0,1.37351613]
[1758382756766,0.29344116,116230.0,116220.0,1.37351613]
[1758382756974,0.56292116,116230.0,116220.0,1.37351613]
[1758382759164,0.56292116,116230.0,116220.0,1.20142871]
[1758382761909,0.58702116,116230.0,116220.0,1.20142871]
[1758382766121,0.59010116,116230.0,116220.0,1.20142871]
[1758382766681,0.9637407,116230.0,116220.0,1.20142871]
[1758382768533,0.59010116,116230.0,116220.0,1.20142871]
[1758382768760,0.9637407,116230.0,116220.0,1.20142871]
[1758382769386,0.97181703,116230.0,116220.0,1.20142871]
[1758382770665,0.59817749,116230.0,116220.0,1.20142871]
[1758382771029,0.97181703,116230.0,116220.0,1.20142871]
[1758382771886,0.97176331,116230.0,116220.0,1.20142871]
[1758382772507,0.96368698,116230.0,116220.0,1.20142871]
[1758382777273,0.96368824,116230.0,116220.0,1.20142871]
[1758382778799,0.32062242,116230.0,116220.0,1.37351613]
[1758382779071,0.93650824,116230.0,116220.0,1.37351613]
[1758382779253,0.56075242,116230.0,116220.0,1.14234931]
[1758382779587,0.93433824,116230.0,116220.0,1.14234931]
[1758382779794,0.93433824,116230.0,116220.0,0.97026189]
[1758382780526,0.93433824,116230.0,116220.0,0.95106189]
[1758382781228,0.93637824,116230.0,116220.0,0.95106189]
[1758382782880,0.96365824,116230.0,116220.0,0.95106189]
[1758382784199,0.96365824,116230.0,116220.0,1.12314931]
[1758382784448,0.96365824,116230.0,116220.0,0.95106189]
[1758382784574,0.96365824,116230.0,116220.0,1.12314931]
[1758382787105,0.56075242,116230.0,116220.0,1.12291659]
[1758382787315,0.56071242,116230.0,116220.0,1.14211659]
[1758382787530,0.56071242,116230.0,116220.0,1.51570241]
[1758382787777,0.56071242,116230.0,116220.0,1.41155659]
[1758382788501,0.56071242,116230.0,116220.0,1.39235659]
[1758382788802,0.29127242,116230.0,116220.0,1.39235659]
[1758382788954,0.56071242,116230.0,116220.0,1.39235659]
[1758382789177,0.56070965,116230.0,116220.0,1.39235659]
[1758382790845,0.56070965,116230.0,116220.0,1.12291659]
[1758382791571,0.56274965,116230.0,116220.0,1.12291659]
[1758382793666,0.59002965,116230.0,116220.0,1.12291659]
[1758382796943,0.59002872,116230.0,116220.0,1.12291659]
[1758382797417,0.59002872,116230.0,116220.0,1.37328341]
[1758382809832,0.59002872,116230.0,116220.0,1.37143341]
[1758382809962,0.96361454,116230.0,116220.0,1.37143341]
[1758382812728,0.96361454,116230.0,116220.0,1.19934599]
[1758382815197,0.96361454,116230.0,116220.0,1.37143341]
[1758382818184,0.59002872,116230.0,116220.0,1.37143341]
[1758382818381,0.96361454,116230.0,116220.0,1.37143341]
[1758382819789,0.58994872,116230.0,116220.0,1.37143341]
[1758382820001,0.96353454,116230.0,116220.0,1.37143341]
[1758382824032,0.96353454,116230.0,116220.0,1.19934599]
[1758382825234,0.96353454,116230.0,116220.0,1.37143341]
[1758382826236,0.96353454,116230.0,116220.0,1.19934599]
[1758382826486,0.96353454,116230.0,116220.0,1.37143341]
[1758382826874,0.96353454,116230.0,116220.0,1.19934599]
[1758382827793,0.96353454,116230.0,116220.0,1.37143341]
[1758382830281,0.96353454,116230.0,116220.0,1.19934599]
[1758382830502,0.96353454,116230.0,116220.0,1.37143341]
[1758382830727,0.96353454,116230.0,116220.0,1.64079341]
[1758382831349,0.96353454,116230.0,116220.0,1.46870599]
[1758382831553,0.95748119,116230.0,116220.0,1.64079341]
[1758382831792,0.96353639,116230.0,116220.0,1.64079341]
[1758382832754,0.95748119,116230.0,116220.0,1.64079341]
[1758382833754,0.96353637,116230.0,116220.0,1.64079341]
[1758382833952,0.58995055,116230.0,116220.0,1.64079341]
[1758382835317,0.58995055,116230.0,116220.0,1.46870599]
[1758382835854,0.58995055,116230.0,116220.0,1.64079341]
[1758382838873,0.58995055,116230.0,116220.0,1.46870599]
[1758382839397,0.58995055,116230.0,116220.0,1.64079341]
[1758382840923,0.58995055,116230.0,116220.0,1.64264341]
[1758382841553,0.58991055,116230.0,116220.0,1.64264341]
[1758382848924,0.58991162,116230.0,116220.0,1.64264341]
[1758382851497,0.58991178,116230.0,116220.0,1.64264341]
[1758382859422,0.58991257,116230.0,116220.0,1.64264341]
[1758382862154,0.58991258,116230.0,116220.0,1.64264341]
[1758382873934,0.58983258,116230.0,116220.0,1.64264341]
[1758382877382,0.32059258,116230.0,116220.0,1.64264341]
[1758382877618,0.58983258,116230.0,116220.0,1.64264341]
[1758382880216,0.29127258,116230.0,116220.0,1.64264341]
[1758382880440,0.29127258,116230.0,116220.0,1.66184341]
[1758382880653,0.56051258,116230.0,116220.0,1.66184341]
[1758382881189,0.56051258,116230.0,116220.0,1.64264341]
[1758382881408,0.29127258,116230.0,116220.0,1.64264341]
[1758382881633,0.56051258,116230.0,116220.0,1.66184341]
[1758382882426,0.56051258,116230.0,116220.0,1.64264341]
[1758382887708,0.56267258,116230.0,116220.0,1.64264341]
[1758382892482,0.58594258,116230.0,116220.0,1.64264341]
[1758382894053,0.95950807,116230.0,116220.0,1.64264341]
[1758382897415,0.69026807,116230.0,116220.0,1.37328341]
[1758382897637,1.75120329,116230.0,116220.0,0.94887917]
[1758382897849,1.75120438,116230.0,116220.0,0.94887917]
[1758382898900,1.75020438,116230.0,116220.0,0.94587917]
[1758382899435,1.75120438,116230.0,116220.0,0.94687917]
[1758382899665,1.75020438,116230.0,116220.0,0.94587917]
[1758382900097,1.75420438,116230.0,116220.0,0.94587917]
[1758382900345,1.84047405,116230.0,116220.0,0.94587917]
[1758382901017,1.75420438,116230.0,116220.0,0.94587917]
[1758382901440,1.75620438,116230.0,116220.0,0.94587917]
[1758382909594,1.7561775,116230.0,116220.0,0.94587917]
[1758382920703,1.0090465,116230.0,116220.0,0.94587917]
[1758382921054,1.7561775,116230.0,116220.0,0.94587917]
[1758382921471,1.7561375,116230.0,116220.0,0.94587917]
[1758382924129,1.73337419,116230.0,116220.0,0.94587917]
[1758382925620,1.46425419,116230.0,116220.0,0.94587917]
[1758382925838,1.73333419,116230.0,116220.0,0.94587917]
[1758382927935,1.7560975,116230.0,116220.0,0.94587917]
[1758382935975,1.75724692,116230.0,116220.0,0.94587917]
[1758382939660,1.75720692,116230.0,116220.0,0.94587917]
[1758382942651,1.48816692,116230.0,116220.0,0.94587917]
[1758382942898,1.73078692,116230.0,116220.0,0.94772917]
[1758382943099,1.46174692,116230.0,116220.0,0.94772917]
[1758382943351,1.35722142,116230.0,116220.0,0.94772917]
[1758382943550,1.38420142,116230.0,116220.0,0.94772917]
[1758382943969,1.38422897,116230.0,116220.0,0.94587917]
[1758382944403,1.75779447,116230.0,116220.0,0.94587917]
[1758382944595,1.48875447,116230.0,116220.0,0.94587917]
[1758382944845,1.75779447,116230.0,116220.0,0.94587917]
[1758382946414,1.01066347,116230.0,116220.0,0.94587917]
[1758382946587,1.01066347,116230.0,116220.0,0.94772917]
[1758382946588,0.69188016,116230.0,116220.0,0.94772917]
[1758382946788,0.92954438,116230.0,116220.0,0.96807917]
[1758382946994,1.33232566,116230.0,116220.0,0.96807917]
[1758382947198,1.06328566,116230.0,116220.0,0.96807917]
[1758382947412,0.68972016,116230.0,116220.0,0.96692917]
[1758382947622,1.33232566,116230.0,116220.0,0.96692917]
[1758382950465,0.95876016,116230.0,116220.0,0.96692917]
[1758382950603,1.33232566,116230.0,116220.0,0.96692917]
[1758382951503,1.06328566,116230.0,116220.0,0.96692917]
[1758382951705,1.33228566,116230.0,116220.0,0.96692917]
[1758382952041,0.68972016,116230.0,116220.0,0.94772917]
[1758382952253,1.06328566,116230.0,116220.0,0.96807917]
[1758382952866,1.06328566,116230.0,116220.0,0.96692917]
[1758382954072,1.06328042,116230.0,116220.0,0.96692917]
[1758382954286,1.33228042,116230.0,116220.0,0.96692917]
[1758382955924,1.31618949,116230.0,116220.0,0.96692917]
[1758382957426,1.31618949,116230.0,116220.0,0.94772917]
[1758382958388,1.04718949,116230.0,116220.0,0.94772917]
[1758382958588,0.6735607,116230.0,116220.0,0.94887917]
[1758382958788,0.9425207,116230.0,116220.0,0.96807917]
[1758382958994,0.9425207,116230.0,116220.0,0.96692917]
[1758382959200,1.31614949,116230.0,116220.0,0.96692917]
[1758382960163,1.04718949,116230.0,116220.0,0.96692917]
[1758382960319,1.31614949,116230.0,116220.0,0.96692917]
[1758382962631,1.04718949,116230.0,116220.0,0.96692917]
[1758382962847,1.31614949,116230.0,116220.0,0.96692917]
[1758382963773,0.6735607,116230.0,116220.0,0.96692917]
[1758382964004,0.6735607,116230.0,116220.0,0.94772917]
[1758382964005,1.31614949,116230.0,116220.0,0.94772917]
[1758382964227,1.31614949,116230.0,116220.0,0.96692917]
[1758382964822,0.6735607,116230.0,116220.0,1.12096659]
[1758382965056,0.90857594,116230.0,116220.0,1.14016659]
[1758382965269,0.63961594,116230.0,116220.0,1.14016659]
[1758382965476,0.90857594,116230.0,116220.0,1.14016659]
[1758382965915,0.63961594,116230.0,116220.0,1.51379538]
[1758382966164,0.90857594,116230.0,116220.0,1.14016659]
[1758382971328,0.90857594,116230.0,116220.0,1.13901659]
[1758382973681,0.87936016,116230.0,116220.0,1.13901659]
[1758382973952,0.87932016,116230.0,116220.0,1.13901659]
[1758382975968,0.9051923,116230.0,116220.0,1.13901659]
[1758382976792,0.6362723,116230.0,116220.0,1.13901659]
[1758382977006,0.9051923,116230.0,116220.0,1.13901659]
[1758382979270,0.9051923,116230.0,116220.0,1.11981659]
[1758382980004,0.9051923,116230.0,116220.0,1.11958675]
[1758382980268,0.9102823,116230.0,116220.0,1.11958675]
[1758382980486,1.3352097,116230.0,116220.0,1.11773675]
[1758382981411,1.3352097,116230.0,116220.0,1.38583675]
[1758382982426,1.0662897,116230.0,116220.0,1.38583675]
[1758382982630,1.3351697,116230.0,116220.0,1.38583675]
[1758382984932,1.33516355,116230.0,116220.0,1.38583675]
[1758382985774,0.96153476,116230.0,116220.0,1.38583675]
[1758382985929,1.33516355,116230.0,116220.0,1.38583675]
[1758382987134,1.33516355,116230.0,116220.0,1.11773675]
[1758382989664,1.33516355,116230.0,116220.0,0.94564933]